fUST/lending_fUST_20250723
["ID","MTS","AMOUNT","RATE_DAILY","PERIOD"]
[374130085,1753221043262,-460.0,0.00017628,2]
[374130087,1753221043271,-460.0,0.00017628,2]
[374130089,1753221043281,-460.0,0.00017628,2]
[374130091,1753221043291,-183.92,0.00017629,2]
[374130093,1753221043300,-471.58,0.00017629,2]
[374130095,1753221043309,-13054.85913821,0.00017804,2]
[374130097,1753221043318,-460.0,0.00017898,2]
[374130099,1753221043327,-460.0,0.00017898,2]
[374130101,1753221043337,-460.0,0.000179,2]
[374130103,1753221043347,-460.0,0.00017901,2]
[374130105,1753221043356,-568.67,0.00017901,2]
[374130106,1753221043365,-526.53,0.00017901,2]
[374130108,1753221043375,-460.0,0.00017902,2]
[374130110,1753221043384,-569.93,0.00017902,2]
[374130113,1753221043393,-568.98,0.00017902,2]
[374130114,1753221043402,-460.0,0.00017902,2]
[374130116,1753221043412,-395.0,0.00017902,2]
[374130118,1753221043421,-152.38,0.00017902,2]
[374130120,1753221043430,-460.0,0.00017902,2]
[374130122,1753221043440,-460.0,0.00017902,2]
[374130124,1753221043450,-500.0,0.00018129,2]
[374130126,1753221043460,-300.35007006,0.00018129,2]
[374130128,1753221043470,-460.0,0.00018172,2]
[374130130,1753221043480,-498.95,0.00018172,2]
[374130133,1753221043489,-460.0,0.00018174,2]
[374130134,1753221043499,-460.0,0.00018175,2]
[374130136,1753221043508,-526.53,0.00018175,2]
[374130138,1753221043517,-460.0,0.00018176,2]
[374130140,1753221043526,-568.98,0.00018176,2]
[374130142,1753221043535,-460.0,0.00018176,2]
[374130144,1753221043544,-460.0,0.00018176,2]
[374130146,1753221043554,-460.0,0.00018176,2]
[374130148,1753221043564,-500.0,0.00018177,2]
[374130150,1753221043573,-500.0,0.00018344,2]
[374130152,1753221043583,-555.95152196,0.00018344,2]
[374130154,1753221043591,-350.99718503,0.00018344,2]
[374130156,1753221043601,-500.0,0.00018344,2]
[374130158,1753221043610,-500.0,0.00018344,2]
[374130160,1753221043619,-500.0,0.00018344,2]
[374130162,1753221043628,-500.0,0.00018344,2]
[374130164,1753221043637,-500.0,0.00018344,2]
[374130166,1753221043647,-500.0,0.00018344,2]
[374130168,1753221043656,-355.09842483,0.00018344,2]
[374130170,1753221043665,-460.0,0.00018446,2]
[374130172,1753221043674,-460.0,0.00018448,2]
[374130174,1753221043683,-460.0,0.00018449,2]
[374130176,1753221043693,-526.53,0.00018449,2]
[374130178,1753221043702,-460.0,0.0001845,2]
[374130180,1753221043711,-568.98,0.0001845,2]
[374130182,1753221043720,-460.0,0.0001845,2]
[374130184,1753221043730,-460.0,0.0001845,2]
[374130186,1753221043739,-460.0,0.0001845,2]
[374130188,1753221043747,-1000.0,0.00018677,2]
[374130190,1753221043757,-460.0,0.0001872,2]
[374130192,1753221043766,-460.0,0.00018722,2]
[374130194,1753221043775,-460.0,0.00018723,2]
[374130196,1753221043784,-526.53,0.00018723,2]
[374130198,1753221043793,-460.0,0.00018724,2]
[374130200,1753221043802,-568.98,0.00018724,2]
[374130202,1753221043812,-460.0,0.00018724,2]
[374130204,1753221043821,-460.0,0.00018724,2]
[374130206,1753221043830,-460.0,0.00018724,2]
[374130208,1753221043839,-637.35740586,0.00018733,2]
[374130210,1753221043849,-500.0,0.00018733,2]
[374130212,1753221043858,-501.29806592,0.00018733,2]
[374130214,1753221043866,-500.0,0.00018733,2]
[374130216,1753221043875,-500.0,0.00018733,2]
[374130218,1753221043884,-500.0,0.00018733,2]
[374130220,1753221043894,-500.0,0.00018733,2]
[374130222,1753221043903,-500.0,0.00018733,2]
[374130224,1753221043912,-500.0,0.00018733,2]
[374130226,1753221043921,-500.0,0.00018733,2]
[374130228,1753221043930,-500.0,0.00018733,2]
[374130230,1753221043939,-500.0,0.00018733,2]
[374130232,1753221043949,-2754.51076904,0.00018808,2]
[374130234,1753221043958,-230.15060744,0.00018859,2]
[374130236,1753221043968,-1000.0,0.00018892,2]
[374130238,1753221043979,-500.0,0.00018892,2]
[374130241,1753221043989,-1000.0,0.00018892,2]
[374130242,1753221043999,-182.27073641,0.00018892,2]
[374130244,1753221044009,-1000.0,0.00018892,2]
[374130247,1753221044018,-1000.0,0.00018892,2]
[374130248,1753221044027,-1000.0,0.00018892,2]
[374130250,1753221044039,-698.45253194,0.000189,2]
[374130253,1753221044050,-12619.94447631,0.00018908,2]
[374130255,1753221044059,-214.6393183,0.00018908,2]
[374130256,1753221044073,-909.1,0.00018984,3]
[374130258,1753221044082,-454.56,0.00018984,3]
[374130260,1753221044092,-460.0,0.00018994,2]
[374130262,1753221044101,-460.0,0.00018996,2]
[374130264,1753221044112,-500.0,0.00018997,2]
[374130267,1753221044124,-460.0,0.00018997,2]
[374130269,1753221044134,-526.53,0.00018997,2]
[374130271,1753221044146,-191.24,0.00018998,2]
[374130273,1753221044156,-568.98,0.00018998,2]
[374130275,1753221044165,-460.0,0.00018998,2]
[374130277,1753221044175,-460.0,0.00018998,2]
[374130279,1753221044184,-460.0,0.00018998,2]
[374130281,1753221044193,-281.224771,0.00019178,2]
[374130283,1753221044203,-1500.0,0.00019224,2]
[374130285,1753221044212,-460.0,0.00019268,2]
[374130287,1753221044221,-460.0,0.0001927,2]
[374130288,1753221044230,-592.78,0.00019271,2]
[374130290,1753221044240,-526.53,0.00019271,2]
[374130293,1753221044250,-568.98,0.00019272,2]
[374130295,1753221044259,-460.0,0.00019272,2]
[374130297,1753221044269,-373.11,0.00019272,2]
[374130299,1753221044278,-159.35,0.00019272,2]
[374130301,1753221044288,-1008.53022819,0.00019281,2]
[374130303,1753221044297,-1000.0,0.00019281,2]
[374130305,1753221044307,-500.0,0.00019281,2]
[374130306,1753221044316,-1000.0,0.00019281,2]
[374130308,1753221044325,-1000.0,0.00019281,2]
[374130310,1753221044334,-1000.0,0.00019281,2]
[374130313,1753221044344,-502.10753571,0.00019281,2]
[374130315,1753221044354,-507.79648748,0.00019281,2]
[374130316,1753221044363,-1000.0,0.00019281,2]
[374130318,1753221044372,-1500.0,0.0001944,2]
[374130320,1753221044381,-994.97606419,0.0001944,2]
[374130322,1753221044391,-1000.0,0.0001944,2]
[374130324,1753221044400,-1500.0,0.0001944,2]
[374130326,1753221044410,-1500.0,0.0001944,2]
[374130328,1753221044420,-500.0,0.00019499,2]
[374130330,1753221044429,-500.0,0.00019499,2]
[374130332,1753221044438,-500.0,0.00019499,2]
[374130333,1753221044447,-500.0,0.00019499,2]
[374130334,1753221044456,-513.36,0.00019499,2]
[374130335,1753221044466,-460.0,0.00019542,2]
[374130336,1753221044475,-460.0,0.00019544,2]
[374130337,1753221044484,-526.53,0.00019545,2]
[374130338,1753221044493,-568.98,0.00019546,2]
[374130339,1753221044502,-460.0,0.00019546,2]
[374130340,1753221044511,-2000.0,0.00019772,2]
[374130341,1753221044520,-460.0,0.00019816,2]
[374130342,1753221044529,-460.0,0.00019818,2]
[374130344,1753221044538,-526.53,0.00019819,2]
[374130346,1753221044547,-568.98,0.0001982,2]
[374130348,1753221044557,-460.0,0.0001982,2]
[374130350,1753221044566,-1000.0,0.00019829,2]
[374130352,1753221044575,-1565.08840486,0.00019829,2]
[374130354,1753221044585,-1500.0,0.00019829,2]
[374130356,1753221044594,-500.0,0.00019988,2]
[374130358,1753221044603,-500.0,0.00019988,2]
[374130360,1753221044612,-251.42,0.0002009,2]
[374130362,1753221044622,-460.0,0.00020092,2]
[374130364,1753221044631,-526.53,0.00020093,2]
[374130367,1753221044641,-568.98,0.00020094,2]
[374130369,1753221044650,-460.0,0.00020094,2]
[374130371,1753221044660,-297.183,0.00020187,2]
[374130373,1753221044668,-507.007814,0.00020187,2]
[374130375,1753221044678,-178.204927,0.00020311,2]
[374130377,1753221044687,-577.4526085,0.00020311,2]
[374130379,1753221044696,-177.6795686,0.00020311,2]
[374130381,1753221044706,-577.4526085,0.00020311,2]
[374130383,1753221044716,-577.4526085,0.00020311,2]
[374130385,1753221044726,-577.4526085,0.00020311,2]
[374130387,1753221044736,-577.4526085,0.00020311,2]
[374130389,1753221044746,-460.0,0.00020366,2]
[374130391,1753221044755,-714.85,0.00020367,2]
[374130393,1753221044765,-526.53,0.00020367,2]
[374130395,1753221044775,-568.98,0.00020368,2]
[374130397,1753221044785,-460.0,0.00020368,2]
[374130399,1753221044794,-636.71,0.00020377,2]
[374130401,1753221044805,-432.56,0.0002064,2]
[374130403,1753221044814,-526.53,0.00020641,2]
[374130405,1753221044823,-568.98,0.00020642,2]
[374130407,1753221044833,-460.0,0.00020642,2]
[374130409,1753221044842,-526.53,0.00020915,2]
[374130411,1753221044851,-568.98,0.00020916,2]
[374130413,1753221044861,-460.0,0.00020916,2]
[374130415,1753221044870,-577.4526085,0.00021132,2]
[374130417,1753221044880,-577.4526085,0.00021132,2]
[374130419,1753221044889,-577.4526085,0.00021132,2]
[374130421,1753221044899,-577.4526085,0.00021132,2]
[374130423,1753221044908,-577.4526085,0.00021132,2]
[374130425,1753221044917,-577.4526085,0.00021132,2]
[374130427,1753221044927,-577.4526085,0.00021132,2]
[374130429,1753221044936,-577.4526085,0.00021132,2]
[374130431,1753221044946,-577.4526085,0.00021132,2]
[374130433,1753221044955,-526.53,0.00021189,2]
[374130435,1753221044965,-568.98,0.0002119,2]
[374130437,1753221044974,-460.0,0.0002119,2]
[374130439,1753221044984,-174.976449,0.00021265,8]
[374130441,1753221044994,-526.53,0.00021463,2]
[374130443,1753221045003,-568.98,0.00021464,2]
[374130445,1753221045012,-460.0,0.00021464,2]
[374130447,1753221045021,-151.0,0.00021628,2]
[374130449,1753221045031,-151.0,0.00021628,2]
[374130451,1753221045040,-151.0,0.00021628,2]
[374130453,1753221045049,-151.0,0.00021628,2]
[374130455,1753221045058,-215.0738,0.00021628,2]
[374130458,1753221045073,-2014.40195529,0.00021628,2]
[374130460,1753221045083,-151.0,0.00021628,2]
[374130462,1753221045093,-151.0,0.00021628,2]
[374130464,1753221045103,-151.0,0.00021628,2]
[374130466,1753221045113,-151.0,0.00021628,2]
[374130468,1753221045122,-151.0,0.00021628,2]
[374130470,1753221045131,-151.0,0.00021628,2]
[374130472,1753221045143,-151.0,0.00021628,2]
[374130474,1753221045153,-151.0,0.00021628,2]
[374130476,1753221045162,-198.0,0.00021628,2]
[374130478,1753221045171,-151.0,0.00021628,2]
[374130480,1753221045180,-151.0,0.00021628,2]
[374130482,1753221045189,-151.0,0.00021628,2]
[374130484,1753221045199,-151.0,0.00021628,2]
[374130486,1753221045207,-151.0,0.00021628,2]
[374130488,1753221045216,-151.0,0.00021628,2]
[374130490,1753221045226,-151.0,0.00021628,2]
[374130492,1753221045237,-151.0,0.00021628,2]
[374130494,1753221045247,-151.0,0.00021628,2]
[374130496,1753221045256,-151.0,0.00021628,2]
[374130498,1753221045266,-6190.67547807,0.000217,2]
[374130504,1753221045309,-460.0,0.00016805,2]
[374130506,1753221045318,-239.56,0.00017079,2]
[374130508,1753221045328,-206.44,0.000217,2]
[374130521,1753221045440,-132585.92746773,0.000217,2]
[374130523,1753221045449,-3000.0,0.000217,2]
[374130525,1753221045458,-1087.14410921,0.000217,2]
[374130527,1753221045467,-1000.0,0.000217,2]
[374130529,1753221045476,-3000.0,0.0002171,2]
[374130531,1753221045485,-3000.0,0.0002172,2]
[374130533,1753221045494,-3000.0,0.0002173,2]
[374130535,1753221045504,-526.53,0.00021737,2]
[374130537,1753221045513,-568.98,0.00021738,2]
[374130539,1753221045523,-460.0,0.00021738,2]
[374130541,1753221045533,-3000.0,0.0002174,2]
[374130543,1753221045542,-3000.0,0.0002175,2]
[374130545,1753221045551,-3000.0,0.0002176,2]
[374130548,1753221045560,-3000.0,0.0002177,2]
[374130551,1753221045570,-307.98289009,0.00021773,2]
[374130554,1753221045579,-500.0,0.00021773,2]
[374130556,1753221045589,-500.0,0.00021773,2]
[374130558,1753221045598,-622.74603772,0.00021773,2]
[374130560,1753221045608,-3000.0,0.0002178,2]
[374130562,1753221045617,-3000.0,0.0002179,2]
[374130564,1753221045626,-3000.0,0.000218,2]
[374130578,1753221045737,-3000.0,0.0002181,2]
[374130580,1753221045750,-3000.0,0.0002182,2]
[374130582,1753221045760,-3000.0,0.0002183,2]
[374130584,1753221045769,-3000.0,0.0002184,2]
[374130586,1753221045778,-3000.0,0.0002185,2]
[374130588,1753221045788,-2754.51076902,0.00021909,2]
[374130590,1753221045797,-312.2187695,0.00021954,2]
[374130593,1753221045806,-464.2,0.00022,7]
[374130595,1753221045816,-177.0,0.00022,2]
[374130597,1753221045827,-526.53,0.00022011,2]
[374130599,1753221045836,-568.98,0.00022012,2]
[374130601,1753221045845,-460.0,0.00022012,2]
[374130603,1753221045854,-165.53,0.000221,7]
[374130605,1753221045863,-500.0,0.0002222,2]
[374130607,1753221045872,-500.0,0.00022222,2]
[374130609,1753221045882,-1273.41,0.0002223,2]
[374130611,1753221045891,-648.0,0.00022277,2]
[374130613,1753221045900,-2157.0,0.00022277,2]
[374130615,1753221045910,-968.0,0.00022277,2]
[374130617,1753221045919,-526.53,0.00022285,2]
[374130619,1753221045928,-568.98,0.00022286,2]
[374130621,1753221045938,-170.10601832,0.00022286,2]
[374130622,1753221045949,-383.04,0.00022357,5]
[374130624,1753221045960,-1627.72,0.00022465,2]
[374130626,1753221045969,-150.0,0.00022527,2]
[374130629,1753221045981,-526.53,0.00022559,2]
[374130631,1753221045991,-568.98,0.0002256,2]
[374130633,1753221046000,-281.224771,0.00022603,2]
[374130634,1753221046011,-526.53,0.00022833,2]
[374130636,1753221046022,-568.98,0.00022834,2]
[374130639,1753221046031,-223.0315306,0.00022997,2]
[374130641,1753221046041,-200.0,0.00023,2]
[374130642,1753221046051,-526.65,0.00023107,2]
[374130644,1753221046060,-569.04,0.00023108,2]
[374130646,1753221046073,-642.0,0.000232,2]
[374130648,1753221046083,-700.0,0.00023401,2]
[374130650,1753221046093,-500.0,0.00023416,2]
[374130652,1753221046104,-500.0,0.00023456,2]
[374130655,1753221046117,-500.0,0.00023456,2]
[374130657,1753221046128,-1096.0,0.000235,5]
[374130659,1753221046138,-250.59356224,0.00023514,2]
[374130661,1753221046148,-500.0,0.00023537,2]
[374130663,1753221046158,-700.0,0.00023538,2]
[374130665,1753221046167,-500.0,0.00023564,2]
[374130667,1753221046177,-306.0,0.0002359,2]
[374130669,1753221046186,-153.0,0.00023598,2]
[374130671,1753221046197,-306.0,0.00023598,2]
[374130673,1753221046206,-700.0,0.00023632,2]
[374130675,1753221046216,-500.0,0.00023641,2]
[374130677,1753221046225,-500.0,0.00023663,2]
[374130679,1753221046235,-700.0,0.00023714,2]
[374130681,1753221046245,-164.16,0.00023761,2]
[374130683,1753221046255,-700.0,0.0002377,2]
[374130685,1753221046264,-464.2,0.000238,7]
[374130687,1753221046274,-700.0,0.00023805,2]
[374130688,1753221046283,-291.108157,0.00023814,2]
[374130690,1753221046292,-500.0,0.00023814,2]
[374130692,1753221046302,-165.53,0.000239,7]
[374130694,1753221046311,-698.45253194,0.000239,2]
[374130696,1753221046322,-700.0,0.00023902,2]
[374130698,1753221046331,-700.0,0.00023931,2]
[374130700,1753221046341,-700.0,0.00023978,2]
[374130702,1753221046350,-500.0,0.00024046,2]
[374130704,1753221046360,-1910.12,0.00024082,2]
[374130706,1753221046370,-5000.0,0.00024115,3]
[374130708,1753221046379,-700.0,0.00024126,2]
[374130710,1753221046389,-500.0,0.00024168,2]
[374130712,1753221046399,-500.0,0.0002419,2]
[374130714,1753221046408,-151.0,0.000242,7]
[374130716,1753221046418,-12619.94447631,0.000242,3]
[374130718,1753221046427,-500.0,0.00024211,2]
[374130720,1753221046437,-700.0,0.0002422,2]
[374130722,1753221046446,-156.162629,0.00024244,2]
[374130724,1753221046456,-500.0,0.00024298,2]
[374130726,1753221046466,-2163.3,0.000243,7]
[374130728,1753221046475,-500.0,0.0002433,2]
[374130730,1753221046485,-231.28369723,0.00024366,2]
[374130732,1753221046494,-700.0,0.00024396,2]
[374130734,1753221046503,-577.4526085,0.00024435,2]
[374130736,1753221046513,-194.5671562,0.00024452,2]
[374130738,1753221046522,-700.0,0.00024456,2]
[374130740,1753221046531,-500.0,0.00024616,2]
[374130742,1753221046541,-700.0,0.00024616,2]
[374130744,1753221046550,-438.0,0.00024658,2]
[374130746,1753221046560,-500.0,0.0002468,2]
[374130748,1753221046570,-700.0,0.00024738,2]
[374130750,1753221046580,-500.0,0.00024781,2]
[374130752,1753221046589,-156.162629,0.00024835,3]
[374130754,1753221046598,-700.0,0.00024839,2]
[374130756,1753221046607,-503.20157742,0.00024873,2]
[374130758,1753221046617,-500.0,0.00024873,2]
[374130760,1753221046626,-500.0,0.00024873,2]
[374130762,1753221046636,-153.87587516,0.00024873,2]
[374130764,1753221046646,-500.0,0.00024873,2]
[374130766,1753221046656,-163.68174743,0.00024873,2]
[374130768,1753221046666,-500.0,0.00024889,2]
[374130770,1753221046675,-908.88,0.000249,2]
[374130772,1753221046685,-205.463075,0.000249,7]
[374130774,1753221046694,-403356.126731,0.000249,2]
[374130776,1753221046704,-151.0,0.000249,7]
[374130778,1753221046714,-700.0,0.00024928,2]
[374130780,1753221046724,-438.0,0.00024932,2]
[374130782,1753221046733,-700.0,0.00024937,2]
[374130784,1753221046743,-10258.6896239,0.00025,30]
[374130786,1753221046753,-526.07605158,0.00025,30]
[374130788,1753221046762,-189.13000327,0.00025009,2]
[374130790,1753221046771,-1145.09225894,0.00025009,2]
[374130792,1753221046780,-2754.51076902,0.00025009,2]
[374130794,1753221046791,-151.53333552,0.00025059,2]
[374130796,1753221046800,-500.0,0.00025073,2]
[374130798,1753221046810,-2200.0,0.00025093,2]
[374130800,1753221046819,-151.0,0.00025096,7]
[374130802,1753221046828,-151.0,0.00025096,7]
[374130804,1753221046838,-151.0,0.00025096,7]
[374130806,1753221046848,-156.162629,0.00025098,32]
[374130808,1753221046857,-2000.0,0.000251,2]
[374130810,1753221046866,-3000.0,0.000251,30]
[374130812,1753221046876,-156.162629,0.000251,32]
[374130814,1753221046884,-500.0,0.00025104,2]
[374130816,1753221046893,-151.0,0.00025106,7]
[374130818,1753221046903,-151.0,0.00025106,7]
[374130820,1753221046913,-151.862799,0.00025106,7]
[374130822,1753221046923,-151.0,0.00025106,7]
[374130824,1753221046932,-151.0,0.00025106,7]
[374130826,1753221046941,-151.0,0.00025106,7]
[374130828,1753221046952,-17250.38987548,0.00025106,2]
[374130830,1753221046961,-151.0,0.00025107,7]
[374130832,1753221046971,-281.717264,0.00025107,7]
[374130834,1753221046981,-151.0,0.00025109,7]
[374130836,1753221046991,-3000.0,0.0002511,30]
[374130838,1753221047000,-241.052642,0.00025113,7]
[374130840,1753221047010,-3622327.8951883,0.00025113,20]
[374130849,1753221047092,-460.0,0.00016806,2]
[374130851,1753221047101,-40.0,0.0001708,2]
[374132221,1753221470893,24900.0,0.00015875,2]
[374132222,1753221565594,10000.0,0.00015875,2]
[374132224,1753221700262,550.309275,0.00013699,2]
[374132226,1753221712297,291.108158,0.00015807,2]
[374132227,1753221777968,263.6977964,0.00026027,120]
[374132228,1753221903164,24080.0,0.00016201,2]
[374132246,1753222232384,-300.0,0.00016801,2]
[374132250,1753222232897,-238.1,0.00016801,2]
[374132259,1753222232983,-17.9,0.00016801,2]
[374132262,1753222232994,-232.0,0.00016801,2]
[374132264,1753222233003,-300.0,0.00016801,2]
[374132265,1753222233014,-538.0,0.00016801,2]
[374132266,1753222233023,-785.0,0.00016802,2]
[374132268,1753222233032,-460.0,0.00016803,2]
[374132270,1753222233041,-460.0,0.00016803,2]
[374132272,1753222233049,-460.0,0.00016803,2]
[374132275,1753222233058,-460.0,0.00016803,2]
[374132278,1753222233067,-460.0,0.00016803,2]
[374132281,1753222233076,-340.12009665,0.00016803,2]
[374132284,1753222233086,-462.60533867,0.00016803,2]
[374132287,1753222233095,-460.0,0.00016803,2]
[374132290,1753222233104,-460.0,0.00016803,2]
[374132293,1753222233113,-460.24260546,0.00016803,2]
[374132296,1753222233122,-460.0,0.00016803,2]
[374132299,1753222233131,-460.0,0.00016803,2]
[374132302,1753222233140,-460.0,0.00016803,2]
[374132305,1753222233149,-460.0,0.00016803,2]
[374132308,1753222233158,-592.58,0.00016803,2]
[374132311,1753222233168,-460.0,0.00016803,2]
[374132313,1753222233177,-460.0,0.00016803,2]
[374132315,1753222233186,-460.0,0.00016803,2]
[374132316,1753222233195,-460.0,0.00016803,2]
[374132318,1753222233204,-460.0,0.00016803,2]
[374132320,1753222233214,-558.93,0.00016803,2]
[374132322,1753222233224,-460.0,0.00016803,2]
[374132324,1753222233233,-460.0,0.00016803,2]
[374132326,1753222233243,-460.0,0.00016803,2]
[374132328,1753222233252,-460.0,0.00016803,2]
[374132330,1753222233262,-460.0,0.00016803,2]
[374132332,1753222233272,-492.96,0.00016803,2]
[374132334,1753222233281,-460.0,0.00016803,2]
[374132336,1753222233291,-460.0,0.00016803,2]
[374132338,1753222233300,-460.0,0.00016803,2]
[374132340,1753222233309,-460.0,0.00016803,2]
[374132342,1753222233319,-460.0,0.00016803,2]
[374132344,1753222233328,-460.0,0.00016803,2]
[374132346,1753222233338,-460.0,0.00016803,2]
[374132348,1753222233348,-460.0,0.00016803,2]
[374132350,1753222233357,-460.0,0.00016803,2]
[374132352,1753222233366,-460.0,0.00016803,2]
[374132354,1753222233377,-460.0,0.00016803,2]
[374132356,1753222233387,-460.0,0.00016803,2]
[374132358,1753222233396,-460.0,0.00016803,2]
[374132360,1753222233406,-460.0,0.00016803,2]
[374132362,1753222233415,-600.77,0.00016803,2]
[374132364,1753222233425,-460.0,0.00016803,2]
[374132365,1753222233438,-460.0,0.00016803,2]
[374132366,1753222233448,-460.0,0.00016803,2]
[374132367,1753222233457,-500.0,0.00016803,2]
[374132368,1753222233468,-554.4887873,0.00016803,2]
[374132369,1753222233478,-500.0,0.00016803,2]
[374132370,1753222233488,-500.0,0.00016803,2]
[374132371,1753222233497,-381.65442582,0.00016803,2]
[374132372,1753222233509,-500.0,0.00016803,2]
[374132373,1753222233518,-500.0,0.00016803,2]
[374132374,1753222233528,-581.50381164,0.00016803,2]
[374132375,1753222233537,-500.0,0.00016803,2]
[374132376,1753222233547,-500.0,0.00016803,2]
[374132377,1753222233558,-500.0,0.00016803,2]
[374132378,1753222233568,-318.86010103,0.00016803,2]
[374132379,1753222233577,-633.78738493,0.00016803,2]
[374132380,1753222233587,-355.82369287,0.00016803,2]
[374132436,1753222238323,-144.17630713,0.00016803,2]
[374132437,1753222238333,-500.0,0.00016803,2]
[374132438,1753222238343,-500.0,0.00016803,2]
[374132439,1753222238353,-531.38,0.00016804,2]
[374132440,1753222238362,-460.0,0.00016804,2]
[374132441,1753222238372,-460.0,0.00016804,2]
[374132442,1753222238382,-467.98456549,0.00016804,2]
[374132443,1753222238391,-460.0,0.00016804,2]
[374132445,1753222238400,-460.0,0.00016804,2]
[374132447,1753222238409,-460.0,0.00016804,2]
[374132449,1753222238418,-356.45912738,0.00016804,2]
[374132452,1753222238431,-103.54087262,0.00016804,2]
[374132455,1753222238444,-460.0,0.00016804,2]
[374132458,1753222238454,-460.0,0.00016804,2]
[374132461,1753222238463,-519.35268304,0.00016804,2]
[374132464,1753222238472,-460.0,0.00016804,2]
[374132467,1753222238481,-460.0,0.00016804,2]
[374132470,1753222238491,-460.0,0.00016804,2]
[374132473,1753222238500,-460.0,0.00016804,2]
[374132475,1753222238510,-562.34,0.00016804,2]
[374132477,1753222238522,-460.0,0.00016804,2]
[374132479,1753222238532,-460.0,0.00016804,2]
[374132482,1753222238543,-460.0,0.00016804,2]
[374132485,1753222238553,-460.0,0.00016804,2]
[374132487,1753222238563,-460.0,0.00016804,2]
[374132489,1753222238572,-460.0,0.00016804,2]
[374132491,1753222238582,-497.09481103,0.00016804,2]
[374132493,1753222238591,-604.02,0.00016804,2]
[374132495,1753222238600,-460.0,0.00016804,2]
[374132497,1753222238610,-460.0,0.00016804,2]
[374132499,1753222238620,-460.0,0.00016804,2]
[374132500,1753222238629,-460.0,0.00016804,2]
[374132501,1753222238639,-460.0,0.00016804,2]
[374132502,1753222238648,-175.91603106,0.00016804,2]
[374132503,1753222238658,-460.0,0.00016804,2]
[374132504,1753222238667,-460.0,0.00016804,2]
[374132505,1753222238677,-460.0,0.00016804,2]
[374132506,1753222238686,-460.0,0.00016804,2]
[374132507,1753222238695,-547.19,0.00016804,2]
[374132508,1753222238704,-460.0,0.00016804,2]
[374132509,1753222238713,-460.0,0.00016804,2]
[374132510,1753222238723,-500.0,0.00016804,2]
[374132511,1753222238732,-500.0,0.00016804,2]
[374132512,1753222238742,-460.0,0.00016804,2]
[374132513,1753222238752,-467.02,0.00016804,2]
[374132514,1753222238763,-460.0,0.00016804,2]
[374132515,1753222238772,-460.0,0.00016804,2]
[374132516,1753222238781,-460.0,0.00016804,2]
[374132517,1753222238791,-460.0,0.00016804,2]
[374132518,1753222238800,-460.0,0.00016804,2]
[374132519,1753222238809,-460.0,0.00016804,2]
[374132520,1753222238819,-460.0,0.00016804,2]
[374132521,1753222238828,-460.0,0.00016804,2]
[374132522,1753222238837,-460.0,0.00016804,2]
[374132523,1753222238846,-460.0,0.00016804,2]
[374132524,1753222238856,-460.0,0.00016804,2]
[374132525,1753222238866,-460.0,0.00016804,2]
[374132526,1753222238876,-460.0,0.00016804,2]